bitfinex/quotes_ETHUSD_20250822
["timestamp","ask_amount","ask_price","bid_price","bid_amount"]
[1755843132267,1.03988266,4304.9,4304.8,0.001]
[1755843132651,8.00688266,4304.9,4304.8,0.001]
[1755843133993,7.57408266,4304.9,4304.8,0.001]
[1755843135199,3.0,4304.9,4304.8,0.3109]
[1755843135697,3.0,4304.9,4304.8,1.4306]
[1755843136074,0.002,4305.6,4304.9,2.98292035]
[1755843136397,0.002,4305.6,4304.9,0.4597]
[1755843136751,0.002,4305.6,4305.0,0.66]
[1755843138681,0.36350385,4305.5,4305.0,0.66]
[1755843138908,0.36350385,4305.5,4304.9,0.4597]
[1755843138909,0.36350385,4305.5,4305.4,0.3099]
[1755843139084,0.36350385,4305.5,4305.4,0.7696]
[1755843142415,0.36350385,4305.5,4305.4,3.75226456]
[1755843144007,0.36350385,4305.5,4305.4,4.36209061]
[1755843147571,0.002,4305.6,4305.5,2.98261061]
[1755843147777,0.002,4305.6,4305.5,3.75221061]
[1755843150606,0.002,4305.6,4305.5,3.77543671]
[1755843151104,0.002,4305.6,4305.5,3.75221061]
[1755843153881,0.002,4305.6,4305.5,4.81568552]
[1755843156507,0.002,4305.6,4305.5,4.35598552]
[1755843156711,0.002,4305.6,4305.5,8.30498552]
[1755843156907,0.002,4305.6,4305.5,3.29251061]
[1755843157109,0.3046,4305.6,4305.5,2.98261061]
[1755843157318,0.002,4305.6,4305.5,2.98261061]
[1755843158123,0.002,4305.6,4305.5,3.29351061]
[1755843158352,0.002,4305.6,4305.5,3.72251061]
[1755843158625,0.002,4305.6,4305.5,4.72173249]
[1755843162425,0.002,4305.6,4305.5,4.22273249]
[1755843163027,0.002,4305.6,4305.5,8.17173249]
[1755843164831,0.002,4305.6,4305.5,7.43083249]
[1755843165434,0.002,4305.6,4305.5,7.74173249]
[1755843166537,0.002,4305.6,4305.5,8.17073249]
[1755843168643,0.002,4305.6,4305.5,8.16973249]
[1755843168941,0.002,4305.6,4305.5,8.16873249]
[1755843169144,0.002,4305.6,4305.5,3.48283249]
[1755843169453,0.002,4305.6,4305.5,3.945]
[1755843169454,0.2094,4305.6,4305.5,3.945]
[1755843169670,0.2094,4305.6,4305.5,6.26861061]
[1755843169810,0.002,4305.6,4305.5,6.92861061]
[1755843170242,0.002,4305.6,4305.5,7.23951061]
[1755843170437,0.002,4305.6,4305.5,7.66851061]
[1755843170948,0.002,4305.6,4305.5,8.66763267]
[1755843175419,0.002,4305.6,4305.5,8.78363267]
[1755843178129,0.002,4305.6,4305.5,3.63263267]
[1755843178428,0.002,4305.6,4305.5,7.02673671]
[1755843178635,0.002,4305.6,4305.5,7.00351061]
[1755843178850,0.002,4305.6,4305.5,7.66351061]
[1755843180852,1e-08,4305.7,4305.6,2.98255667]
[1755843181066,1e-08,4305.7,4305.6,3.86168223]
[1755843181403,1e-08,4305.7,4305.6,5.76835214]
[1755843181664,1e-08,4305.7,4305.6,5.74512658]
[1755843185854,0.002,4306.1,4306.0,2.98234091]
[1755843186061,0.002,4306.1,4306.0,9.02524091]
[1755843186442,0.002,4306.1,4306.0,9.45424091]
[1755843186669,0.002,4306.1,4306.0,10.2029062]
[1755843187064,0.002,4306.1,4306.0,6.2569062]
[1755843187244,0.002,4306.1,4306.0,10.2009062]
[1755843187644,0.002,4306.1,4306.0,10.1999062]
[1755843188444,0.002,4306.1,4306.0,5.9460062]
[1755843188658,0.002,4306.1,4306.0,9.8880062]
[1755843188835,0.002,4306.1,4306.0,10.1823062]
[1755843189874,0.002,4306.1,4306.0,10.6265062]
[1755843190570,0.002,4306.1,4306.0,10.79916417]
[1755843192065,1e-08,4306.1,4306.0,10.79916417]
[1755843193046,1e-08,4306.1,4306.0,13.79916417]
[1755843194345,1e-08,4306.1,4306.0,16.36516417]
[1755843198057,1e-08,4306.1,4306.0,13.91516417]
[1755843198976,1e-08,4306.1,4306.0,14.35916417]
[1755843200169,1e-08,4306.1,4306.0,11.35916417]
[1755843200389,1e-08,4306.6,4306.5,2.98207128]
[1755843200676,1e-08,4306.6,4306.5,7.74179261]
[1755843200887,1e-08,4306.6,4306.5,8.30199261]
[1755843201094,6.61869632,4309.0,4307.7,2.98142442]
[1755843201294,0.444,4309.0,4307.7,8.72363866]
[1755843201493,0.3213,4307.8,4307.7,8.70642442]
[1755843201653,0.3213,4307.8,4307.7,9.92521636]
[1755843202100,0.02,4307.8,4307.7,9.92521636]
[1755843202395,0.2558,4307.8,4307.7,10.30844736]
[1755843203156,0.02,4307.8,4307.7,10.60274736]
[1755843203703,0.02,4307.8,4307.7,11.04694736]
[1755843205904,0.02,4307.8,4307.7,9.92521636]
[1755843206792,0.02,4307.8,4307.7,10.21951636]
[1755843207511,0.2558,4307.8,4307.7,5.98621636]
[1755843207666,0.2558,4307.8,4307.7,8.81742442]
[1755843207865,0.6977,4307.8,4307.7,4.10742442]
[1755843208265,0.6977,4307.8,4307.7,8.70142442]
[1755843209066,0.6977,4307.8,4307.7,8.04142442]
[1755843209510,0.6977,4307.8,4307.7,8.70142442]
[1755843210764,0.6977,4307.8,4307.7,4.76742442]
[1755843211265,0.6977,4307.8,4307.7,8.70042442]
[1755843211673,0.2558,4307.8,4307.7,8.70042442]
[1755843214021,0.6998,4307.8,4307.7,8.70042442]
[1755843214975,0.6998,4307.8,4307.7,8.69742442]
[1755843215177,0.7018,4307.8,4307.7,8.69742442]
[1755843215478,0.2578,4307.8,4307.7,8.69742442]
[1755843216019,0.2578,4307.8,4307.7,4.76742442]
[1755843216198,0.2578,4307.8,4307.7,8.69742442]
[1755843216374,0.2578,4307.8,4307.7,4.76742442]
[1755843216780,0.2578,4307.8,4307.7,8.69842442]
[1755843217118,0.7018,4307.8,4307.7,8.69842442]
[1755843217615,0.7018,4307.8,4307.7,4.76742442]
[1755843218078,0.2578,4307.8,4307.7,8.69742442]
[1755843218898,0.022,4307.8,4307.7,8.69742442]
[1755843219319,0.0244,4307.8,4307.7,8.69742442]
[1755843220315,0.022,4307.8,4307.7,8.69742442]
[1755843220492,0.022,4307.8,4307.7,8.98752442]
[1755843220685,0.022,4307.8,4307.7,8.69742442]
[1755843220904,0.022,4307.8,4307.7,8.98752442]
[1755843221100,0.022,4307.8,4307.7,9.41912442]
[1755843221605,0.022,4307.8,4307.7,10.59318819]
[1755843221980,0.022,4307.8,4307.7,10.70918819]
[1755843223381,0.022,4307.8,4307.7,8.69642442]
[1755843223382,0.0263,4307.8,4307.7,8.69642442]
[1755843223581,0.4512,4307.8,4307.7,7.10742442]
[1755843223777,0.0263,4307.8,4307.7,11.69742442]
[1755843224713,0.4573,4307.8,4307.7,11.69742442]
[1755843224899,0.4573,4307.8,4307.7,8.69742442]
[1755843225300,0.4573,4307.8,4307.7,8.69842442]
[1755843226115,0.4573,4307.8,4307.7,8.69742442]
[1755843226713,0.4573,4307.8,4307.7,4.76742442]
[1755843226885,0.4573,4307.8,4307.7,8.69742442]
[1755843227779,0.4573,4307.8,4307.7,8.69642442]
[1755843228398,0.4573,4307.8,4307.7,4.76742442]
[1755843228682,0.4573,4307.8,4307.7,8.69642442]
[1755843229099,0.0263,4307.8,4307.7,8.69642442]
[1755843229989,0.022,4307.8,4307.7,8.98652442]
[1755843231597,0.0245,4307.8,4307.7,4.76742442]
[1755843232120,0.0245,4307.8,4307.7,8.69442442]
[1755843232512,0.0245,4307.8,4307.7,4.76742442]
[1755843232695,0.0245,4307.8,4307.7,8.69342442]
[1755843233425,0.022,4307.8,4307.7,8.69342442]
[1755843233592,0.022,4307.8,4307.7,8.98352442]
[1755843234807,0.022,4307.8,4307.7,9.41512442]
[1755843235121,0.022,4307.8,4307.7,8.98352442]
[1755843235428,0.022,4307.8,4307.7,4.76742442]
[1755843235631,0.022,4307.8,4307.7,8.69142442]
[1755843236529,0.022,4307.8,4307.7,8.98152442]
[1755843236732,0.022,4307.8,4307.7,5.05752442]
[1755843236931,0.022,4307.8,4307.7,8.98152442]
[1755843237226,0.022,4307.8,4307.7,8.69142442]
[1755843237427,0.2707,4307.8,4307.7,8.69142442]
[1755843237630,0.022,4307.8,4307.7,8.98152442]
[1755843238132,0.022,4307.8,4307.7,9.41312442]
[1755843238698,0.022,4307.8,4307.7,10.62968952]
[1755843241537,0.81424597,4308.8,4308.7,2.98088564]
[1755843241538,0.38324597,4308.8,4308.7,2.98088564]
[1755843241709,0.38324597,4308.8,4308.7,7.62658564]
[1755843241913,0.38324597,4308.8,4308.7,8.7999399]
[1755843242230,0.38324597,4308.8,4308.7,4.8275859]
[1755843242434,0.38324597,4308.8,4308.7,9.1841859]
[1755843243713,0.63194597,4308.8,4308.7,3.36413164]
[1755843244033,0.63194597,4308.8,4308.7,6.90588564]
[1755843246557,0.002,4309.7,4308.7,14.26539632]
[1755843246719,0.002,4309.7,4309.6,2.98040096]
[1755843246908,0.002,4309.7,4309.6,7.20050096]
[1755843247102,0.002,4309.7,4309.6,7.63210096]
[1755843247508,0.002,4309.7,4309.6,7.26490096]
[1755843247743,0.101,4309.7,4309.6,7.26490096]
[1755843248010,0.101,4309.7,4309.6,6.91040096]
[1755843248422,0.101,4309.7,4309.6,7.24390096]
[1755843248642,0.101,4309.7,4309.6,3.31390096]
[1755843248811,0.101,4309.7,4309.6,7.24390096]
[1755843249213,0.3162,4309.7,4309.6,2.98040096]
[1755843249418,0.3162,4309.7,4309.6,6.91040096]
[1755843250348,0.002,4309.7,4309.6,6.91040096]
[1755843251453,0.101,4309.7,4309.6,6.90940096]
[1755843253129,0.002,4309.7,4309.6,7.65960096]
[1755843253339,0.002,4309.7,4309.6,7.20710096]
[1755843253653,0.002,4309.7,4309.6,6.90940096]
[1755843254449,0.002,4309.7,4309.6,6.90640096]
[1755843254632,0.002,4309.7,4309.6,2.98040096]
[1755843254829,0.002,4309.7,4309.6,6.90640096]
[1755843255850,0.002,4309.7,4309.6,8.80303858]
[1755843256865,0.002,4309.7,4309.6,4.87703858]
[1755843257071,0.002,4309.7,4309.6,8.80203858]
[1755843260533,0.02,4310.8,4310.7,2.31980884]
[1755843260763,0.02,4310.8,4310.7,9.21748972]
[1755843260966,0.02,4310.8,4310.7,9.66998972]
[1755843261129,0.02,4310.8,4310.7,8.92078972]
[1755843261463,0.02,4310.8,4310.7,9.67098972]
[1755843262034,0.02,4310.8,4310.7,9.66998972]
[1755843262285,0.02,4310.8,4310.7,4.76480884]
[1755843262574,0.4502,4310.8,4310.2,3.923]
[1755843262883,6.94989632,4310.7,4310.3,0.66]
[1755843263034,0.3142,4310.4,4310.3,0.66]
[1755843263770,0.4324,4310.4,4310.2,3.927]
[1755843263991,0.1182,4310.3,4310.2,3.927]
[1755843264204,0.38306563,4310.8,4310.7,2.97980884]
[1755843264498,0.38306563,4310.8,4310.7,7.22670692]
[1755843264708,0.02,4310.8,4310.7,7.65600884]
[1755843265010,0.02,4310.8,4310.7,9.06409496]
[1755843266573,0.02,4310.8,4310.7,6.92180884]
[1755843266767,0.02,4310.8,4310.7,7.67200884]
[1755843267375,0.02,4310.8,4310.7,6.92180884]
[1755843267571,0.022,4310.8,4310.7,7.67300884]
[1755843267910,1.805,4312.8,4310.7,7.67300884]
[1755843267911,1.805,4312.8,4311.7,2.97927082]
[1755843268111,1.805,4312.8,4311.7,7.23297082]
[1755843268296,1.805,4312.8,4311.7,7.68547082]
[1755843268474,0.02,4312.8,4311.7,7.68547082]
[1755843269409,0.36292356,4312.0,4311.7,7.68547082]
[1755843269799,0.119,4311.8,4311.7,6.93427082]
[1755843270575,0.02,4311.8,4311.7,6.93427082]
[1755843270793,0.119,4311.8,4311.7,6.93427082]
[1755843272587,0.119,4311.8,4311.7,2.97927082]
[1755843272791,0.119,4311.8,4311.7,6.93127082]
[1755843273830,0.02,4311.8,4311.7,6.93127082]
[1755843274322,0.02,4311.8,4311.7,7.10286452]
[1755843274692,0.119,4311.8,4311.7,7.10286452]
[1755843275421,0.02,4311.8,4311.7,7.10286452]
[1755843276722,0.119,4311.8,4311.7,7.10286452]
[1755843276888,0.02,4311.8,4311.7,7.10286452]
[1755843277095,0.02,4311.8,4311.7,7.09886452]
[1755843277438,0.1213,4311.8,4311.7,7.09886452]
[1755843278002,0.1213,4311.8,4311.7,0.8315937]
[1755843278234,0.4502,4311.8,4311.7,4.7785937]
[1755843278400,0.1213,4311.8,4311.7,0.8315937]
[1755843278725,0.1213,4311.8,4311.7,0.1715937]
[1755843278921,0.1213,4311.8,4311.5,3.947]
[1755843279219,0.1213,4311.8,4311.6,0.66]
[1755843279426,0.1213,4311.8,4311.6,2.97931683]
[1755843279733,0.1213,4311.8,4311.6,0.66]
[1755843280225,0.1213,4311.8,4311.6,2.97930939]
[1755843280527,0.1213,4311.8,4311.6,0.66]
[1755843280722,0.1213,4311.8,4311.5,0.17386196]
[1755843280899,0.1213,4311.8,4311.6,3.948]
[1755843281103,0.1213,4311.8,4311.5,2.31937491]
[1755843281627,0.1213,4311.8,4311.6,2.31931628]
[1755843281830,0.48429616,4311.8,4311.6,2.31931628]
[1755843282913,0.48429616,4311.8,4311.5,2.97937162]
[1755843283226,0.48429616,4311.8,4311.7,2.31927082]
[1755843283528,0.48429616,4311.8,4311.6,2.31931348]
[1755843283728,0.02,4311.8,4311.7,7.22287082]
[1755843283938,0.02,4311.8,4311.7,7.68227082]
[1755843285132,0.0233,4311.8,4311.4,0.17516828]
[1755843285318,0.0233,4311.8,4310.8,1.785]
[1755843285319,0.02,4311.8,4311.7,2.61787082]
[1755843285638,0.02,4311.8,4311.7,3.30106352]
[1755843285928,0.02,4311.8,4311.7,3.76046352]
[1755843286430,0.02,4311.8,4311.7,7.70227082]
[1755843287032,0.02,4311.8,4311.7,7.70427082]
[1755843287219,0.02,4311.8,4311.7,8.88503356]
[1755843288625,0.02,4311.8,4311.7,3.79863356]
[1755843288830,0.02,4311.8,4311.7,6.58387082]
[1755843289003,0.02,4311.8,4311.7,7.70327082]
[1755843289210,0.02,4311.8,4311.7,3.73727082]
[1755843289528,0.02,4311.8,4311.7,7.72446352]
[1755843289721,0.02,4311.8,4311.7,7.70127082]
[1755843290025,0.02,4311.8,4311.7,8.88173356]
[1755843290393,0.02,4311.8,4311.7,11.88173356]
[1755843293414,0.02,4311.8,4311.7,11.42033356]
[1755843293640,0.02,4311.8,4311.7,11.87973356]
[1755843294223,0.02,4311.8,4311.7,11.41833356]
[1755843294527,0.02,4311.8,4311.7,11.87773356]
[1755843294743,0.02,4311.8,4295.0,10.8931427]
[1755843294744,0.119,4311.8,4310.8,1.95523516]
[1755843294905,0.119,4311.8,4311.7,2.31927082]
[1755843295098,0.02,4311.8,4311.7,2.31927082]
[1755843295363,0.02,4311.8,4311.7,2.97927082]
[1755843295632,0.02,4311.8,4311.7,2.31927082]
[1755843295936,0.02,4311.8,4311.7,2.97927082]
[1755843296539,0.119,4311.8,4311.7,2.97927082]
[1755843297135,0.02,4311.8,4311.7,3.80302159]
[1755843298033,0.02,4311.8,4311.7,3.50442159]
[1755843298338,0.02,4311.8,4311.7,3.00246352]
[1755843298524,0.119,4311.8,4311.7,2.97927082]
[1755843298836,0.119,4311.8,4311.7,3.00246352]
[1755843299140,0.119,4311.8,4311.7,2.97927082]
[1755843299338,0.119,4311.8,4311.7,6.93727082]
[1755843300299,0.4525,4311.8,4310.8,1.95523516]
[1755843300505,0.4525,4311.8,4310.9,6.27670122]
[1755843300738,0.3335,4311.7,4311.0,4.617]
[1755843300936,0.36299462,4311.6,4311.0,4.617]
[1755843301115,0.36299462,4311.6,4311.5,2.6179784]
[1755843301323,0.36299462,4311.6,4311.5,6.5749784]
[1755843301545,0.36299462,4311.6,4311.5,7.0343784]
[1755843301758,0.02,4311.8,4311.7,2.31927082]
[1755843301957,0.022,4311.8,4311.7,7.25906352]
[1755843302165,0.022,4311.8,4311.7,7.69527082]
[1755843302535,0.022,4311.8,4311.7,8.49764953]
[1755843304464,0.022,4311.8,4311.7,11.49764953]
[1755843305240,0.002,4312.3,4312.2,2.9790019]
[1755843305562,0.002,4312.3,4312.2,7.2336019]
[1755843305738,0.002,4312.3,4312.2,7.6930019]
[1755843305940,0.002,4312.3,4312.2,8.69420956]
[1755843306267,0.02,4312.8,4312.7,2.97873304]
[1755843306578,0.02,4312.8,4312.7,9.01833304]
[1755843306879,0.02,4312.8,4312.7,9.47773304]
[1755843307082,0.02,4312.8,4312.7,10.66898706]
[1755843307884,0.02,4312.8,4312.7,10.78498706]
[1755843308067,0.02,4312.8,4312.7,10.898859]
[1755843308450,0.02,4312.8,4312.7,6.941859]
[1755843308630,0.02,4312.8,4312.7,10.898859]
[1755843308836,0.02,4312.8,4312.7,9.941859]
[1755843309066,0.02,4312.8,4312.7,13.897859]
[1755843310388,0.02,4312.8,4312.7,6.941859]
[1755843310678,0.02,4312.8,4312.7,10.897859]
[1755843313476,0.02,4312.8,4312.7,11.06972634]
[1755843316455,0.02,4312.8,4312.7,7.11372634]
[1755843316653,0.02,4312.8,4312.7,10.3724544]
[1755843317247,0.02,4312.8,4312.7,10.8023544]
[1755843321095,1e-08,4313.2,4312.8,0.66]
[1755843321266,1e-08,4313.2,4313.1,9.88493148]
[1755843321467,1e-08,4313.2,4313.1,16.94693148]
[1755843321682,1e-08,4313.2,4313.1,17.37683148]
[1755843321885,1e-08,4313.2,4313.1,10.783918]
[1755843322254,2.1175,4315.0,4313.7,2.97819551]
[1755843322460,0.3335,4315.0,4313.7,9.57252361]
[1755843322661,0.3335,4315.0,4313.7,9.97924166]
[1755843323264,3.0,4315.3,4313.7,9.97924166]
[1755843323587,0.3335,4314.9,4313.7,9.97924166]
[1755843324470,0.36274113,4314.4,4313.7,9.54834166]
[1755843324670,0.36274113,4314.4,4313.7,9.54734166]
[1755843325112,0.36274113,4314.4,4313.7,9.97724166]
[1755843326227,1e-08,4313.8,4313.7,25.01964566]
[1755843326589,1e-08,4314.8,4314.7,2.97765823]
[1755843326907,1e-08,4314.8,4314.7,12.42992405]
[1755843327312,1e-08,4314.8,4314.7,19.45273753]
[1755843327888,1e-08,4314.8,4314.7,8.48792405]
[1755843328213,0.2248,4317.1,4316.0,2.31696014]
[1755843328513,0.2248,4317.1,4316.7,2.97658442]
[1755843328711,0.2248,4317.1,4316.7,6.96558442]
[1755843328877,0.119,4316.8,4316.7,6.96658442]
[1755843329279,0.119,4316.8,4316.7,2.97658442]
[1755843329479,0.02,4316.8,4316.7,6.99275026]
[1755843329726,0.02,4316.8,4316.7,7.28308442]
[1755843329902,0.02,4316.8,4316.7,11.82222832]
[1755843330210,1e-08,4316.8,4316.7,17.40741132]
[1755843330408,1e-08,4316.8,4316.7,11.82222832]
[1755843330988,1e-08,4316.8,4316.7,24.14966932]
[1755843331186,1e-08,4316.8,4316.7,18.94993332]
[1755843331387,1e-08,4316.8,4316.7,18.14242732]
[1755843332295,1e-08,4316.8,4316.7,13.80137232]
[1755843332495,0.6,4317.2,4317.1,3.66]
[1755843332683,0.6,4317.2,4317.1,10.42403347]
[1755843332881,0.6,4317.2,4317.1,10.83076978]
[1755843333486,1e-08,4317.2,4317.1,10.83076978]
[1755843333818,1e-08,4317.5,4317.4,2.97620882]
[1755843334029,1e-08,4317.5,4317.4,19.24210598]
[1755843334230,1e-08,4317.5,4317.4,15.7957269]
[1755843334432,1e-08,4317.5,4317.4,16.1096269]
[1755843334602,0.499,4319.2,4318.7,2.97551161]
[1755843334798,0.119,4318.8,4318.7,6.97251161]
[1755843335451,0.02,4318.8,4318.7,7.08851161]
[1755843335597,0.02,4318.8,4318.7,7.40201161]
[1755843335798,0.02,4318.8,4318.7,7.83191161]
[1755843336003,0.499,4319.2,4318.8,3.0]
[1755843336210,0.499,4319.2,4319.1,0.9735]
[1755843336388,0.3535,4319.8,4319.7,2.97497557]
[1755843336591,0.3535,4319.8,4319.7,12.52952532]
[1755843336922,1.802,4321.8,4320.7,2.97443978]
[1755843337219,0.02,4321.8,4320.7,6.98243978]
[1755843337420,0.02,4321.8,4320.7,7.09843978]
[1755843337793,0.02,4321.8,4320.7,7.52833978]
[1755843338018,0.02,4321.8,4320.7,7.09843978]
[1755843338332,0.02,4321.8,4320.7,7.83173978]
[1755843338517,0.12,4320.8,4320.7,7.83173978]
[1755843339270,0.12,4320.8,4320.7,7.10443978]
[1755843339472,0.12,4320.8,4320.7,2.97443978]
[1755843339625,0.12,4320.8,4320.7,7.00958417]
[1755843339825,0.12,4320.8,4320.7,6.98643978]
[1755843340423,0.12,4320.8,4320.7,2.97443978]
[1755843340623,0.12,4320.8,4320.7,7.01058417]
[1755843340965,0.12,4320.8,4320.7,2.97443978]
[1755843341173,0.12,4320.8,4320.7,6.98743978]
[1755843341758,0.12,4320.8,4320.7,2.97443978]
[1755843341944,0.12,4320.8,4320.7,6.98743978]
[1755843342357,0.12,4320.8,4320.7,2.97443978]
[1755843342528,0.12,4320.8,4320.7,6.98543978]
[1755843343165,0.12,4320.8,4320.5,4.011]
[1755843343365,0.12,4320.8,4320.2,2.31470718]
[1755843343550,0.12,4320.8,4319.9,0.116]
[1755843343551,0.12,4320.8,4320.0,2.31476583]
[1755843343729,0.12,4320.8,4319.7,4.27292868]
[1755843344068,0.12,4320.8,4319.8,4.01]
[1755843344275,0.12,4320.8,4320.2,2.31469183]
[1755843344562,0.12,4320.8,4320.7,2.97443978]
[1755843344738,0.12,4320.8,4320.7,6.98543978]
[1755843345328,0.12,4320.8,4320.7,2.97443978]
[1755843345528,0.12,4320.8,4320.7,4.669]
[1755843345728,0.12,4320.8,4320.7,0.66]
[1755843347152,0.12,4320.8,4319.9,2.31482008]
[1755843347349,0.12,4320.8,4320.0,4.008]
[1755843347753,0.12,4320.8,4319.7,1.95795457]
[1755843347754,0.12,4320.8,4319.7,0.17695457]
[1755843348010,0.12,4320.8,4319.3,0.116]
[1755843348011,3.0,4320.3,4319.3,0.116]
[1755843348156,3.0,4320.3,4318.8,5.788]
[1755843348157,14.90258604,4319.8,4318.8,5.788]
[1755843348345,14.90258604,4319.8,4318.8,4.007]
[1755843348541,3.0,4319.7,4318.5,2.31560634]
[1755843348744,3.0,4319.7,4318.5,4.007]
[1755843349052,3.0,4319.7,4318.1,1.781]
[1755843349254,0.36235284,4319.5,4318.2,6.32273452]
[1755843349575,0.36235284,4319.5,4318.2,4.007]
[1755843349781,0.36235284,4319.5,4318.7,2.31550788]
[1755843349942,0.36235284,4319.5,4318.5,2.31556538]
[1755843350138,0.36235284,4319.5,4318.2,4.007]
[1755843350344,0.36235284,4319.5,4318.2,4.4412]
[1755843350652,0.36235284,4319.5,4318.3,0.02315726]
[1755843350854,0.36235284,4319.5,4319.4,3.27423636]
[1755843351054,0.36235284,4319.5,4319.4,3.73158772]
[1755843351302,1.781,4321.2,4320.4,0.66]
[1755843351447,1.781,4321.2,4320.7,2.97443978]
[1755843352095,0.48219877,4320.8,4320.7,2.97443978]
[1755843352996,0.48219877,4320.8,4320.7,0.66]
[1755843353491,0.48219877,4320.8,4320.7,2.97443978]
[1755843353795,0.48219877,4320.8,4320.7,3.29668417]
[1755843353978,0.48219877,4320.8,4320.7,3.70773978]
[1755843354163,0.48219877,4320.8,4320.7,4.71096814]
[1755843354363,0.12,4320.8,4320.7,4.71096814]
[1755843355116,0.12,4320.8,4320.7,4.82696814]
[1755843357176,0.12,4320.8,4320.7,5.00331438]
[1755843358601,1e-08,4320.8,4320.7,5.00331438]
[1755843359177,0.003,4321.1,4321.0,2.9742791]
[1755843359396,0.003,4321.1,4321.0,8.32971664]
[1755843359584,0.003,4321.1,4321.0,8.74077385]
[1755843360190,0.003,4321.1,4321.0,8.85677385]
[1755843361495,0.382121,4323.3,4321.8,2.31385071]
[1755843361695,0.01738192,4323.5,4322.7,0.116]
[1755843361905,0.02038192,4323.5,4322.7,6.97436895]
[1755843362075,0.01738192,4323.5,4322.7,2.97336895]
[1755843362273,0.01738192,4323.5,4322.7,6.98436895]
[1755843363785,0.0248,4322.8,4322.7,0.66]
[1755843363992,0.0278,4322.8,4322.1,4.008]
[1755843364195,0.0248,4322.8,4322.1,4.008]
[1755843364482,0.0248,4322.8,4322.3,0.66]
[1755843364686,0.0248,4322.8,4321.9,1.78]
[1755843364875,0.0248,4322.8,4322.0,4.012]
[1755843365071,0.1248,4322.8,4321.9,1.78]
[1755843365285,0.1278,4322.8,4322.0,4.012]
[1755843365486,0.1248,4322.8,4322.1,4.011]
[1755843365689,0.1248,4322.8,4322.2,0.66]
[1755843365907,0.1248,4322.8,4322.7,0.66]
[1755843366093,0.1248,4322.8,4322.6,0.66]
[1755843366384,0.1248,4322.8,4322.7,0.66]
[1755843366586,0.1248,4322.8,4322.5,2.31347243]
[1755843366810,0.1248,4322.8,4322.7,0.66]
[1755843367010,0.1248,4322.8,4322.4,4.01]
[1755843367190,0.1248,4322.8,4322.5,0.66]
[1755843367378,0.12,4322.8,4322.6,0.66]
[1755843367579,0.12,4322.8,4322.7,2.97336895]
[1755843368512,0.1248,4322.8,4322.7,0.66]
[1755843369025,0.1278,4322.8,4321.2,1.78]
[1755843369318,3.0,4322.5,4321.0,4.017]
[1755843369519,0.0048,4321.4,4320.7,0.17634624]
[1755843369677,0.0048,4321.4,4320.7,2.49074669]
[1755843369882,0.0048,4321.4,4320.8,2.31438509]
[1755843370107,0.0048,4321.4,4320.7,0.17634624]
[1755843370538,0.0078,4321.4,4320.7,0.17634624]
[1755843370679,18.2725528,4321.4,4320.7,0.17634624]
[1755843370879,18.2725528,4321.4,4320.4,0.001]
[1755843372214,3.0,4321.3,4320.4,0.001]
[1755843372511,0.0048,4320.5,4320.4,0.001]
[1755843372902,0.0078,4320.5,4320.4,0.001]
[1755843373275,0.37010464,4320.5,4320.4,0.001]
[1755843374178,4.5087652,4320.5,4320.4,0.001]
[1755843374677,0.37010464,4320.5,4320.4,0.001]
[1755843374885,4.39010464,4320.5,4320.4,0.001]
[1755843375589,0.36710464,4320.5,4320.4,0.001]
[1755843375790,0.0048,4320.5,4320.4,0.001]
[1755843376515,4.023,4320.9,4320.4,0.001]
[1755843376706,0.36228709,4321.1,4320.4,0.001]
[1755843376917,0.36228709,4321.1,4320.9,0.66]
[1755843377121,1.78,4321.6,4321.3,0.66]
[1755843377325,4.023,4322.1,4321.3,0.66]
[1755843377635,3.0,4322.2,4321.5,0.945]
[1755843377796,4.78,4322.3,4321.5,0.66]
[1755843377995,1.78,4322.3,4321.1,2.97421068]
[1755843378200,3.0,4322.2,4321.1,2.97421665]
[1755843378601,3.0,4322.2,4321.1,0.66]
[1755843378996,3.0,4322.2,4320.4,0.001]
[1755843378997,0.36214198,4322.0,4320.6,0.66]
[1755843379203,0.36214198,4322.0,4320.9,0.66]
[1755843379397,0.36214198,4322.0,4320.9,2.97431107]
[1755843379634,0.36214198,4322.0,4321.2,0.66]
[1755843379934,0.36214198,4322.0,4321.5,0.66]
[1755843380134,0.36214198,4322.0,4321.3,0.47194118]
[1755843380135,0.36214198,4322.0,4321.3,0.02314118]
[1755843380304,0.36214198,4322.0,4321.0,0.66]
[1755843380305,0.36214198,4322.0,4321.7,2.97385609]
[1755843380502,0.36214198,4322.0,4321.8,0.4488]
[1755843380732,0.36214198,4322.0,4321.8,2.76263894]
[1755843381116,0.36214198,4322.0,4321.7,0.66]
[1755843381499,0.36214198,4322.0,4321.7,2.9738751]
[1755843381703,0.36214198,4322.0,4321.7,2.31389863]
[1755843381931,0.36214198,4322.0,4321.5,0.66]
[1755843382323,0.36214198,4322.0,4321.2,0.4488]
[1755843382638,0.36214198,4322.0,4321.4,2.31405397]
[1755843382933,0.36214198,4322.0,4321.3,2.31411562]
[1755843383307,0.36214198,4322.0,4321.4,2.31403409]
[1755843383534,0.36214198,4322.0,4321.4,2.31403808]
[1755843383744,0.36214198,4322.0,4321.5,2.31399792]
[1755843383920,1.78,4322.3,4322.0,0.62885802]
[1755843384133,0.0048,4322.1,4322.0,0.62885802]
[1755843384308,7.0248,4322.1,4322.0,0.62885802]
[1755843384507,3.0048,4322.1,4322.0,0.62885802]
[1755843384737,7.0248,4322.1,4322.0,0.62885802]
[1755843385046,7.019,4322.1,4322.0,0.62885802]
[1755843385247,7.0238,4322.1,4322.0,0.62885802]